bitfinex/quotes_BTCUSD_20250115
["timestamp","ask_amount","ask_price","bid_price","bid_amount"]
[1736920700122,0.06499211,97145.0,97144.0,0.00179298]
[1736920701261,0.06299211,97145.0,97144.0,0.00179298]
[1736920701511,0.06399211,97145.0,97144.0,0.00179298]
[1736920701889,0.06299211,97145.0,97144.0,0.00179298]
[1736920702098,0.06499211,97145.0,97144.0,0.00179298]
[1736920702500,0.06299211,97145.0,97144.0,0.00179298]
[1736920702679,0.06399211,97145.0,97144.0,0.00179298]
[1736920703103,0.06299211,97145.0,97144.0,0.00179298]
[1736920703484,0.34406911,97145.0,97144.0,0.00179298]
[1736920704714,0.34506911,97145.0,97144.0,0.00179298]
[1736920705781,0.34406911,97145.0,97144.0,0.00179298]
[1736920705909,0.34506911,97145.0,97144.0,0.00179298]
[1736920706116,0.36020926,97145.0,97144.0,0.00179298]
[1736920706568,0.36120926,97145.0,97144.0,0.00179298]
[1736920706953,0.28600926,97145.0,97144.0,0.00179298]
[1736920707340,0.26986911,97145.0,97144.0,0.00179298]
[1736920707839,0.26886911,97145.0,97144.0,0.00179298]
[1736920708040,0.27086911,97145.0,97144.0,0.00179298]
[1736920710250,0.37509603,97145.0,97144.0,0.00179298]
[1736920710431,0.47509603,97145.0,97144.0,0.00179298]
[1736920711752,0.8172921,97145.0,97144.0,0.00179298]
[1736920711952,0.8924921,97145.0,97144.0,0.00179298]
[1736920712951,0.8904921,97145.0,97144.0,0.00179298]
[1736920713926,0.8924921,97145.0,97144.0,0.00179298]
[1736920714330,0.8954921,97145.0,97144.0,0.00179298]
[1736920714544,0.8904921,97145.0,97144.0,0.00179298]
[1736920714771,0.8924921,97145.0,97144.0,0.00179298]
[1736920715040,0.8974921,97145.0,97144.0,0.00279298]
[1736920715441,0.8994921,97145.0,97144.0,0.00279298]
[1736920715647,0.8924921,97145.0,97144.0,0.00179298]
[1736920715951,0.8974921,97145.0,97144.0,0.00179298]
[1736920716708,0.8954921,97145.0,97144.0,0.00179298]
[1736920717119,0.8974921,97145.0,97144.0,0.00179298]
[1736920717354,0.8924921,97145.0,97144.0,0.00179298]
[1736920717922,0.8994921,97145.0,97144.0,0.00279298]
[1736920723055,0.91563279,97145.0,97144.0,0.00279298]
[1736920725875,0.8994921,97145.0,97144.0,0.00279298]
[1736920737307,0.8974921,97145.0,97144.0,0.00279298]
[1736920737912,0.8924921,97145.0,97144.0,0.00279298]
[1736920738113,0.8994921,97145.0,97144.0,0.00279298]
[1736920739416,0.8974921,97145.0,97144.0,0.00279298]
[1736920739802,0.8994921,97145.0,97144.0,0.00279298]
[1736920740313,0.8974921,97145.0,97144.0,0.00279298]
[1736920740828,0.8994921,97145.0,97144.0,0.00279298]
[1736920742807,0.91563265,97145.0,97144.0,0.00279298]
[1736920743008,0.8994921,97145.0,97144.0,0.00279298]
[1736920746055,0.91563263,97145.0,97144.0,0.00279298]
[1736920749333,0.84043263,97145.0,97144.0,0.00279298]
[1736920749570,0.59297025,97145.0,97144.0,0.00279298]
[1736920749764,0.57682972,97145.0,97144.0,0.00279298]
[1736920752667,0.57591174,97145.0,97144.0,0.00279298]
[1736920753188,0.37095272,97145.0,97144.0,0.08199298]
[1736920753336,0.37003474,97145.0,97144.0,0.08199298]
[1736920753954,0.37095272,97145.0,97144.0,0.08199298]
[1736920754192,0.36395272,97145.0,97144.0,0.08099298]
[1736920755009,0.36195272,97145.0,97144.0,0.08099298]
[1736920755357,0.15986098,97145.0,97144.0,0.08099298]
[1736920757335,0.01975665,97145.0,97144.0,0.08099298]
[1736920758827,0.01975665,97145.0,97144.0,0.12849298]
[1736920759204,0.01975665,97145.0,97144.0,0.12949298]
[1736920759699,0.01975665,97145.0,97144.0,0.12849298]
[1736920759907,0.01975665,97145.0,97144.0,0.12949298]
[1736920760052,0.01975665,97145.0,97144.0,0.08199298]
[1736920760456,0.01975665,97145.0,97144.0,0.08099298]
[1736920760658,0.21131312,97145.0,97144.0,0.08199298]
[1736920760872,0.11243683,97145.0,97144.0,0.08199298]
[1736920761155,0.11243683,97145.0,97144.0,0.08099298]
[1736920761324,0.11343683,97145.0,97144.0,0.08099298]
[1736920761761,0.02075665,97145.0,97144.0,0.08099298]
[1736920762432,0.02075665,97145.0,97144.0,0.08199298]
[1736920763569,0.02075665,97145.0,97144.0,0.08099298]
[1736920770757,0.02075665,97145.0,97144.0,0.00179298]
[1736920775550,0.03689613,97145.0,97144.0,0.00179298]
[1736920776569,0.03689613,97145.0,97144.0,0.07889298]
[1736920776923,0.03689613,97145.0,97144.0,0.12789298]
[1736920776924,0.01713948,97145.0,97144.0,0.12789298]
[1736920777102,0.001,97145.0,97144.0,0.12789298]
[1736920777242,0.01983867,97145.0,97144.0,0.12789298]
[1736920777878,0.001,97145.0,97144.0,0.12789298]
[1736920778079,0.01883867,97145.0,97144.0,0.12789298]
[1736920778402,0.01983867,97145.0,97144.0,0.12789298]
[1736920778811,0.01983867,97145.0,97144.0,0.12889298]
[1736920779103,0.01883867,97145.0,97144.0,0.12889298]
[1736920779320,0.01883867,97145.0,97144.0,0.12789298]
[1736920779553,0.01883867,97145.0,97144.0,0.13189298]
[1736920779665,0.01883867,97145.0,97144.0,0.13489298]
[1736920781662,0.01975665,97145.0,97144.0,0.13489298]
[1736920789984,0.01975665,97145.0,97144.0,0.28489298]
[1736920794433,0.01975665,97145.0,97144.0,0.28089298]
[1736920794777,0.01975665,97145.0,97144.0,0.28189298]
[1736920795309,0.01975665,97145.0,97144.0,0.28489298]
[1736920795464,0.01975665,97145.0,97144.0,0.28089298]
[1736920795665,0.01975665,97145.0,97144.0,0.15179298]
[1736920795870,0.01975665,97145.0,97144.0,0.15679298]
[1736920798616,0.01975665,97145.0,97144.0,0.18679298]
[1736920800205,0.01951665,97145.0,97144.0,0.18679298]
[1736920801927,0.01951665,97145.0,97144.0,0.19247298]
[1736920802128,0.00091798,97146.0,97145.0,0.205877]
[1736920802459,0.01859867,97147.0,97146.0,0.0754]
[1736920802663,0.01859867,97147.0,97146.0,0.17962692]
[1736920803030,0.01945257,97150.0,97147.0,0.561746]
[1736920803231,0.0008539,97150.0,97149.0,0.2743]
[1736920803435,0.0008539,97150.0,97149.0,0.60739592]
[1736920804894,0.0008539,97150.0,97149.0,0.63944117]
[1736920805509,0.0018539,97150.0,97149.0,0.64744117]
[1736920805829,0.0008539,97150.0,97149.0,0.60739592]
[1736920806013,0.0008539,97150.0,97149.0,0.61781123]
[1736920806212,0.0018539,97150.0,97149.0,0.64613839]
[1736920806575,0.0018539,97150.0,97149.0,0.65013839]
[1736920807548,0.0018539,97150.0,97149.0,0.62713839]
[1736920807825,0.0018539,97150.0,97149.0,0.63281839]
[1736920807996,0.0008539,97150.0,97149.0,0.62481839]
[1736920808296,0.0018539,97150.0,97149.0,0.63281839]
[1736920808458,0.0018539,97150.0,97149.0,0.62881839]
[1736920808854,0.0018539,97150.0,97149.0,0.63281839]
[1736920810097,9.166e-05,97163.0,97162.0,0.355841]
[1736920810299,9.166e-05,97163.0,97162.0,0.53876792]
[1736920810499,9.166e-05,97163.0,97162.0,0.58436792]
[1736920811310,0.09261389,97179.0,97163.0,0.2287]
[1736920811556,0.09261389,97179.0,97173.0,0.434518]
[1736920811892,0.01859867,97185.0,97173.0,0.54442492]
[1736920812912,0.0018534,97174.0,97173.0,0.55142492]
[1736920813124,0.0018534,97174.0,97173.0,0.86415492]
[1736920814272,0.0018534,97174.0,97173.0,0.87470975]
[1736920814482,0.0018534,97174.0,97173.0,0.92030975]
[1736920816005,0.0018534,97174.0,97173.0,0.94116083]
[1736920819882,0.0018534,97174.0,97173.0,0.66118083]
[1736920820083,0.02137005,97174.0,97173.0,0.33028483]
[1736920820284,0.00277138,97174.0,97173.0,0.33028483]
[1736920820722,0.00277138,97174.0,97173.0,0.43451175]
[1736920821140,0.00177138,97174.0,97173.0,0.42751175]
[1736920821441,0.02037005,97174.0,97173.0,0.32028483]
[1736920821646,0.02037005,97174.0,97173.0,0.32596483]
[1736920822055,0.02037005,97174.0,97173.0,0.32128483]
[1736920822207,0.02037005,97174.0,97173.0,0.31928483]
[1736920822408,0.02037005,97174.0,97173.0,0.32328483]
[1736920822833,0.03650528,97174.0,97173.0,0.32328483]
[1736920823044,0.02037005,97174.0,97173.0,0.32028483]
[1736920823243,0.02037005,97174.0,97173.0,0.32128483]
[1736920823814,0.02037005,97174.0,97173.0,0.32028483]
[1736920824620,0.02137005,97174.0,97173.0,0.31928483]
[1736920825096,0.02137005,97174.0,97173.0,0.30873]
[1736920826671,0.0375054,97174.0,97173.0,0.30873]
[1736920826878,0.0365054,97174.0,97173.0,0.30873]
[1736920827081,0.0385054,97174.0,97173.0,0.30873]
[1736920827485,0.0365054,97174.0,97173.0,0.30873]
[1736920827656,0.0385054,97174.0,97173.0,0.30873]
[1736920828078,0.02237005,97174.0,97173.0,0.30873]
[1736920842157,0.02037005,97174.0,97173.0,0.30873]
[1736920842364,0.02137005,97174.0,97173.0,0.30873]
[1736920842659,0.02037005,97174.0,97173.0,0.30873]
[1736920842959,0.02037005,97174.0,97173.0,0.30973]
[1736920844269,0.02037005,97174.0,97173.0,0.31073]
[1736920847831,0.02037005,97174.0,97173.0,0.30873]
[1736920848711,0.02337005,97174.0,97173.0,0.30873]
[1736920848916,0.02037005,97174.0,97173.0,0.30873]
[1736920849055,0.02237005,97174.0,97173.0,0.30873]
[1736920851155,0.00377138,97174.0,97173.0,0.41295692]
[1736920851308,0.02237005,97174.0,97173.0,0.41295692]
[1736920851875,0.00377138,97174.0,97173.0,0.41295692]
[1736920852835,0.02237005,97174.0,97173.0,0.41295692]
[1736920853047,0.00377138,97174.0,97173.0,0.41295692]
[1736920853985,0.02237005,97174.0,97173.0,0.41295692]
[1736920854484,0.00377138,97174.0,97173.0,0.41295692]
[1736920854898,0.02237005,97174.0,97173.0,0.41295692]
[1736920856911,0.00377138,97174.0,97173.0,0.41295692]
[1736920857312,0.02237005,97174.0,97173.0,0.41295692]
[1736920857498,0.03850509,97174.0,97173.0,0.41295692]
[1736920861101,0.03650509,97174.0,97173.0,0.41295692]
[1736920861579,0.03650509,97174.0,97173.0,0.41495692]
[1736920862939,0.03650509,97174.0,97173.0,0.41695692]
[1736920863132,0.02037005,97174.0,97173.0,0.41695692]
[1736920864713,0.02037005,97174.0,97173.0,0.41295692]
[1736920865142,0.02037005,97174.0,97173.0,0.41795692]
[1736920869523,0.03650504,97174.0,97173.0,0.41795692]
[1736920873103,0.02037005,97174.0,97173.0,0.41795692]
[1736920877819,0.01945207,97174.0,97173.0,0.41795692]
[1736920878022,0.02037005,97174.0,97173.0,0.41795692]
[1736920878704,0.01945207,97174.0,97173.0,0.56795692]
[1736920878905,0.0008534,97174.0,97173.0,0.64505692]
[1736920879118,0.09261389,97181.0,97180.0,0.355803]
[1736920879316,0.0751225,97181.0,97180.0,0.89173992]
[1736920879516,0.13892084,97184.0,97181.0,0.4757]
[1736920879737,0.13892084,97184.0,97183.0,0.33132692]
[1736920879942,0.12153251,97184.0,97183.0,2.03424165]
[1736920880117,0.07260944,97184.0,97183.0,3.14820565]
[1736920880318,0.0008538,97197.0,97196.0,0.355769]
[1736920880515,0.0008538,97197.0,97196.0,0.89736592]
[1736920882630,0.0008538,97197.0,97196.0,0.90736592]
[1736920882814,0.0008538,97197.0,97196.0,0.89164592]
[1736920882944,0.0008538,97197.0,97196.0,0.89736592]
[1736920883146,0.0008538,97197.0,97196.0,1.23406592]
[1736920884155,0.0008538,97197.0,97196.0,1.2441814]
[1736920884359,0.0008538,97197.0,97196.0,1.2401814]
[1736920884851,0.0008538,97197.0,97196.0,1.2441814]
[1736920885067,0.0008538,97197.0,97196.0,1.2371814]
[1736920885307,0.0008538,97197.0,97196.0,1.2411814]
[1736920885721,0.0008538,97197.0,97196.0,1.2381814]
[1736920886058,0.0008538,97197.0,97196.0,1.2471814]
[1736920886268,0.0008538,97197.0,97196.0,1.26738642]
[1736920888709,0.0008538,97197.0,97196.0,1.26166642]
[1736920889029,0.0008538,97197.0,97196.0,1.13866642]
[1736920889208,0.0008538,97197.0,97196.0,1.14434642]
[1736920891024,0.0008538,97197.0,97196.0,1.13866642]
[1736920891225,0.01945247,97197.0,97196.0,1.1241414]
[1736920891842,0.01945247,97197.0,97196.0,0.81414548]
[1736920892070,0.02037045,97197.0,97196.0,0.80914548]
[1736920892265,0.02037045,97197.0,97196.0,0.65914548]
[1736920892605,0.02037045,97197.0,97196.0,0.66214548]
[1736920892818,0.02037045,97197.0,97196.0,0.81214548]
[1736920893022,0.02037045,97197.0,97196.0,0.80014548]
[1736920893214,0.02037045,97197.0,97196.0,0.48144548]
[1736920894629,0.02037045,97197.0,97196.0,0.47844548]
[1736920894775,0.02037045,97197.0,97196.0,0.47444548]
[1736920895214,0.06947045,97197.0,97196.0,0.32076548]
[1736920895589,0.06947045,97197.0,97196.0,0.31976548]
[1736920895765,0.07047045,97197.0,97196.0,0.31976548]
[1736920896174,0.06947045,97197.0,97196.0,0.31976548]
[1736920896371,0.07047045,97197.0,97196.0,0.30965]
[1736920896574,0.07047045,97197.0,97196.0,0.30865]
[1736920896777,0.06947045,97197.0,97196.0,0.30865]
[1736920898174,0.07147045,97197.0,97196.0,0.30865]
[1736920899342,0.08760238,97197.0,97196.0,0.30865]
[1736920899546,0.07147045,97197.0,97196.0,0.30865]
[1736920901361,0.06947045,97197.0,97196.0,0.30865]
[1736920902077,0.07147045,97197.0,97196.0,0.30865]
[1736920902492,0.2032793,97197.0,97196.0,0.30865]
[1736920902709,0.24737045,97197.0,97196.0,0.30865]
[1736920902905,0.24937045,97197.0,97196.0,0.30865]
[1736920903689,0.24737045,97197.0,97196.0,0.30865]
[1736920904697,0.24837045,97197.0,97196.0,0.30865]
[1736920905130,0.24937045,97197.0,97196.0,0.30865]
[1736920905306,0.24737045,97197.0,97196.0,0.30865]
[1736920905517,0.24837045,97197.0,97196.0,0.30865]
[1736920906061,0.25237045,97197.0,97196.0,0.30865]
[1736920907487,0.25218526,97197.0,97196.0,0.30865]
[1736920915870,0.33913199,97197.0,97196.0,0.30865]
[1736920916380,0.25218526,97197.0,97196.0,0.30865]
[1736920919432,0.26831788,97197.0,97196.0,0.30865]
[1736920919784,0.25218526,97197.0,97196.0,0.30865]
[1736920921371,0.25218526,97197.0,97196.0,0.31044172]
[1736920922909,0.26831789,97197.0,97196.0,0.31044172]
[1736920923115,0.34074525,97197.0,97196.0,0.31044172]
[1736920923530,0.25218526,97197.0,97196.0,0.31044172]
[1736920925790,0.26831782,97197.0,97196.0,0.31044172]
[1736920928805,0.21921782,97197.0,97196.0,0.31044172]
[1736920929778,0.20308526,97197.0,97196.0,0.31044172]
[1736920933066,0.21921782,97197.0,97196.0,0.31044172]
[1736920933264,0.20308526,97197.0,97196.0,0.31044172]
[1736920933465,0.39857285,97197.0,97196.0,0.31044172]
[1736920933669,0.42157285,97197.0,97196.0,0.31044172]
[1736920934175,0.57137285,97197.0,97196.0,0.31044172]
[1736920934494,0.57137285,97197.0,97196.0,0.00179172]
[1736920935465,0.91282268,97197.0,97196.0,0.00179172]
[1736920935658,0.90882268,97197.0,97196.0,0.00179172]
[1736920935861,0.90782268,97197.0,97196.0,0.00179172]
[1736920936071,0.90982268,97197.0,97196.0,0.00179172]
[1736920936273,0.91382268,97197.0,97196.0,0.00279172]
[1736920936622,0.90782268,97197.0,97196.0,0.00179172]
[1736920936840,0.11951665,97188.0,97187.0,0.06902508]
[1736920937067,0.11951665,97188.0,97184.0,0.00179193]
[1736920937068,0.11951665,97185.0,97184.0,0.00179193]
[1736920938384,0.25831971,97185.0,97184.0,0.00179193]
[1736920939452,0.2744538,97185.0,97184.0,0.00179193]
[1736920939667,0.25831971,97185.0,97184.0,0.00179193]
[1736920939818,0.25931971,97185.0,97184.0,0.00179193]
[1736920940698,0.28185633,97185.0,97184.0,0.00179193]
[1736920941148,0.28685633,97185.0,97184.0,0.00179193]
[1736920941559,0.14805327,97185.0,97184.0,0.00179193]
[1736920942856,0.50586389,97185.0,97184.0,0.00179193]
[1736920943235,0.4897299,97185.0,97184.0,0.00179193]
[1736920945843,0.67480064,97185.0,97184.0,0.00179193]
[1736920948349,0.4897299,97185.0,97184.0,0.00179193]
[1736920949326,0.50586371,97185.0,97184.0,0.00179193]
[1736920949559,0.16418708,97185.0,97184.0,0.00179193]
[1736920949778,0.14805327,97185.0,97184.0,0.00179193]
[1736920950769,0.4897299,97185.0,97184.0,0.00179193]
[1736920953023,0.67491423,97185.0,97184.0,0.00179193]
[1736920953650,0.65237761,97185.0,97184.0,0.00179193]
[1736920959387,0.66851134,97185.0,97184.0,0.00179193]
[1736920959582,0.65237761,97185.0,97184.0,0.00179193]
[1736920969301,0.66851241,97185.0,97184.0,0.00179193]
[1736920969681,0.46719328,97185.0,97184.0,0.00179193]
[1736920970209,0.5714202,97185.0,97184.0,0.00179193]
[1736920970753,0.22974357,97185.0,97184.0,0.00179193]
[1736920971373,0.12551665,97185.0,97184.0,0.00179193]
[1736920972030,0.46719328,97185.0,97184.0,0.00179193]
[1736920972912,0.4833269,97185.0,97184.0,0.00179193]
[1736920973114,0.46719328,97185.0,97184.0,0.00179193]
[1736920975759,0.69853171,97185.0,97184.0,0.00179193]
[1736920975975,0.80275863,97185.0,97184.0,0.00179193]
[1736920976931,0.69853171,97185.0,97184.0,0.00179193]
[1736920977145,0.46719328,97185.0,97184.0,0.00179193]
[1736920977359,0.48332687,97185.0,97184.0,0.00179193]
[1736920978267,0.14165024,97185.0,97184.0,0.00179193]
[1736920979371,0.48332687,97185.0,97184.0,0.00179193]
[1736920979589,0.5714202,97185.0,97184.0,0.00179193]
[1736920984154,0.46719328,97185.0,97184.0,0.00179193]
[1736920989357,0.48332686,97185.0,97184.0,0.00179193]
[1736920989724,0.46719328,97185.0,97184.0,0.00179193]
[1736920995196,0.5714202,97185.0,97184.0,0.00179193]
[1736920996233,0.8216202,97185.0,97184.0,0.00179193]
[1736920996434,0.92584712,97185.0,97184.0,0.00179193]
[1736920997002,0.92484712,97185.0,97184.0,0.00179193]
[1736920997222,0.91984712,97185.0,97184.0,0.00179193]
[1736920997403,0.93084712,97185.0,97184.0,0.00279193]
[1736920997731,0.91984712,97185.0,97184.0,0.00179193]
[1736920998095,0.92884712,97185.0,97184.0,0.00279193]
[1736920998312,0.93915946,97185.0,97184.0,0.00279193]
[1736920999239,0.94215946,97185.0,97184.0,0.00279193]
[1736920999443,0.95829442,97185.0,97184.0,0.00279193]
[1736920999684,0.94215946,97185.0,97184.0,0.00279193]
[1736921001384,1.27195946,97185.0,97184.0,0.00279193]
[1736921002174,1.0072202,97185.0,97184.0,0.00279193]
[1736921002614,1.486503,97185.0,97184.0,0.00279193]
[1736921003601,1.0072202,97185.0,97184.0,0.00279193]
[1736921007422,1.02335494,97185.0,97184.0,0.00279193]
[1736921007565,0.92243696,97185.0,97184.0,0.00279193]
[1736921007764,1.06532736,97185.0,97184.0,0.00279193]
[1736921008168,0.96440938,97185.0,97184.0,0.00279193]
[1736921008596,1.02335494,97185.0,97184.0,0.00279193]
[1736921009598,1.0072202,97185.0,97184.0,0.00279193]
[1736921019375,1.02335513,97185.0,97184.0,0.00279193]
[1736921019733,1.0072202,97185.0,97184.0,0.00279193]
[1736921029444,1.02335507,97185.0,97184.0,0.00279193]
[1736921029601,1.11144712,97185.0,97184.0,0.00279193]
[1736921030413,0.70299328,97185.0,97184.0,0.12629193]
[1736921030614,0.3722753,97185.0,97184.0,0.12629193]
[1736921030857,0.3722753,97185.0,97184.0,0.13686213]
[1736921031074,0.3722753,97185.0,97184.0,0.28686213]
[1736921031605,0.09260974,97193.0,97185.0,0.205793]
[1736921031718,0.09260974,97193.0,97192.0,0.205778]
[1736921031926,0.00550249,97200.0,97195.0,0.15]
[1736921032149,0.00550249,97200.0,97199.0,0.431963]
[1736921032354,0.00550249,97200.0,97199.0,0.55918992]
[1736921032555,0.27782922,97209.0,97207.0,0.431946]
[1736921032763,0.27782922,97209.0,97207.0,0.54185292]
[1736921032971,0.01859867,97218.0,97207.0,0.54185292]
[1736921033236,0.01859867,97218.0,97207.0,0.55145721]
[1736921034395,0.01859867,97218.0,97207.0,0.55545721]
[1736921034599,0.0018536,97208.0,97207.0,0.56345721]
[1736921034767,0.0008536,97208.0,97207.0,0.55545721]
[1736921035167,0.0018536,97208.0,97207.0,0.56345721]
[1736921035454,0.0018536,97208.0,97207.0,0.56196323]
[1736921035834,0.0018536,97208.0,97207.0,0.55235894]
[1736921036188,0.0018536,97208.0,97207.0,0.54667894]
[1736921036425,0.0018536,97208.0,97207.0,0.55235894]
[1736921036813,0.0028536,97208.0,97207.0,0.56435894]
[1736921037009,0.0028536,97208.0,97207.0,0.55635894]
[1736921037010,0.0008536,97208.0,97207.0,0.55635894]
[1736921037397,0.0018536,97208.0,97207.0,0.56435894]
[1736921037597,0.0018536,97208.0,97207.0,0.56035894]
[1736921038023,0.0018536,97208.0,97207.0,0.56435894]
[1736921038279,0.0008536,97208.0,97207.0,0.55635894]
[1736921038475,0.0018536,97208.0,97207.0,0.56035894]
[1736921039772,0.0008536,97208.0,97207.0,0.55635894]
[1736921040184,0.0018536,97208.0,97207.0,0.56435894]
[1736921040504,0.0018536,97208.0,97207.0,0.56035894]
[1736921040647,0.0018536,97208.0,97207.0,0.56335894]
[1736921041258,0.0028536,97208.0,97207.0,0.56935894]
[1736921042175,0.01645227,97209.0,97208.0,0.15]
[1736921042401,0.01645227,97209.0,97208.0,0.25422692]
[1736921043399,0.01645227,97209.0,97208.0,0.26222692]
[1736921047920,0.01645227,97209.0,97208.0,0.26790692]
[1736921048120,0.01645227,97209.0,97208.0,0.16368]
[1736921049074,0.01645227,97209.0,97208.0,0.16068]
[1736921049313,0.01645227,97209.0,97208.0,0.16168]
[1736921049777,0.01645227,97209.0,97208.0,0.16068]
[1736921049977,0.01730587,97209.0,97208.0,0.15768]
[1736921050230,0.01730587,97209.0,97208.0,0.16068]
[1736921050626,0.01730587,97209.0,97208.0,0.15768]
[1736921050826,0.01730587,97209.0,97208.0,0.16168]
[1736921054872,0.01730587,97209.0,97208.0,0.161727]
[1736921059017,0.01730587,97209.0,97208.0,0.17126615]
[1736921061751,0.01730587,97209.0,97208.0,0.16926615]
[1736921062100,0.01730587,97209.0,97208.0,0.17226615]
[1736921062302,0.01730587,97209.0,97208.0,0.17405871]
[1736921062933,0.01730587,97209.0,97208.0,0.17005871]
[1736921063132,0.01730587,97209.0,97208.0,0.17505871]
[1736921069766,0.01822385,97209.0,97208.0,0.01937871]
[1736921070501,0.01822385,97209.0,97208.0,0.01437871]
[1736921070927,0.01822385,97209.0,97208.0,0.01837871]
[1736921071105,0.01822385,97209.0,97208.0,0.01537871]
[1736921071534,0.09932385,97209.0,97208.0,0.01537871]
[1736921071734,0.09932385,97209.0,97208.0,0.00583956]
[1736921071913,0.09932385,97209.0,97208.0,0.00783956]
[1736921072315,0.09932385,97209.0,97208.0,0.00383956]
[1736921072567,0.30355077,97209.0,97208.0,0.00583956]
[1736921072739,0.3957112,97209.0,97208.0,0.00683956]
[1736921073395,0.3957112,97209.0,97208.0,0.00283956]
[1736921073856,0.7255112,97209.0,97208.0,0.00283956]
[1736921074057,0.7739112,97209.0,97208.0,0.00283956]
[1736921074170,0.7739112,97209.0,97208.0,0.00183956]
[1736921074630,0.7749112,97209.0,97208.0,0.00183956]
[1736921075592,0.7739112,97209.0,97208.0,0.00183956]
[1736921075997,0.7809112,97209.0,97208.0,0.00183956]
[1736921076425,0.7759112,97209.0,97208.0,0.00183956]
[1736921076630,0.7819112,97209.0,97208.0,0.00183956]
[1736921077244,0.7799112,97209.0,97208.0,0.00183956]
[1736921077449,0.7739112,97209.0,97208.0,0.00183956]
[1736921077662,0.79804261,97209.0,97208.0,0.00283956]
[1736921078065,0.79604261,97209.0,97208.0,0.00283956]
[1736921078379,0.79804261,97209.0,97208.0,0.00283956]
[1736921079169,0.42311425,97208.0,97207.0,0.00179256]
[1736921079348,0.76196809,97208.0,97207.0,0.00179256]
[1736921080267,0.93190585,97208.0,97207.0,0.00279256]
[1736921080652,0.92290585,97208.0,97207.0,0.00179256]
[1736921080860,0.93490585,97208.0,97207.0,0.00279256]
[1736921081255,0.94227935,97208.0,97207.0,0.00279256]
[1736921081676,1.32696273,97208.0,97207.0,0.00379256]
[1736921081895,0.40515025,97191.0,97190.0,0.07088682]
[1736921082140,0.11737025,97185.0,97180.0,0.16018856]
[1736921082352,0.42739017,97185.0,97175.0,0.16018856]
[1736921082565,0.44352393,97185.0,97175.0,0.16018856]
[1736921083034,0.42739017,97185.0,97175.0,0.16018856]
[1736921083957,0.23016325,97185.0,97175.0,0.16018856]
[1736921084070,0.23316325,97185.0,97175.0,0.16018856]
[1736921084637,0.33439017,97185.0,97175.0,0.16018856]
[1736921084782,0.33739017,97185.0,97175.0,0.16018856]
[1736921085386,0.33439017,97185.0,97175.0,0.16018856]
[1736921085581,0.33639017,97185.0,97175.0,0.16018856]
[1736921086198,0.32939017,97185.0,97175.0,0.16018856]
[1736921086835,0.33539017,97185.0,97175.0,0.16018856]
[1736921087032,0.32939017,97185.0,97175.0,0.16018856]
[1736921087555,0.35052398,97185.0,97175.0,0.16018856]
[1736921089322,0.5547509,97185.0,97175.0,0.16018856]
[1736921093155,0.53861709,97185.0,97175.0,0.16018856]
[1736921094251,0.53861709,97185.0,97175.0,0.08009428]
[1736921094579,0.53861709,97185.0,97175.0,0.16018856]
[1736921097505,0.55475098,97185.0,97165.0,0.00568]
[1736921097739,0.55475098,97185.0,97175.0,0.16018856]
[1736921099107,0.55475098,97185.0,97175.0,0.08009428]
[1736921099504,0.55475098,97185.0,97175.0,0.16018856]
[1736921102670,0.53861709,97185.0,97175.0,0.16018856]
[1736921107135,0.55475166,97185.0,97175.0,0.16018856]
[1736921111747,0.45052474,97185.0,97175.0,0.16018856]
[1736921113006,0.43439017,97185.0,97175.0,0.16018856]
[1736921115659,0.43439017,97185.0,97173.0,0.00196]
[1736921115956,0.43439017,97185.0,97175.0,0.16018856]
[1736921117370,0.45052442,97185.0,97175.0,0.16018856]
[1736921118811,0.53352442,97185.0,97175.0,0.16018856]
[1736921119250,0.53352442,97185.0,97173.0,0.00196]
[1736921119251,0.57942442,97185.0,97173.0,0.00196]
[1736921119479,0.78365134,97185.0,97173.0,0.00196]
[1736921119685,0.76751709,97185.0,97173.0,0.00196]
[1736921119894,0.76751709,97185.0,97175.0,0.08009428]
[1736921120097,1.3328569,97185.0,97175.0,0.08009428]
[1736921121154,1.3278569,97185.0,97175.0,0.08009428]
[1736921121756,1.09596064,97185.0,97175.0,0.08009428]
[1736921121964,1.09996064,97185.0,97175.0,0.08009428]
[1736921122621,1.10496064,97185.0,97175.0,0.08009428]
[1736921122832,1.11609668,97185.0,97175.0,0.08009428]
[1736921123204,1.10896064,97185.0,97175.0,0.08009428]
[1736921123413,1.10496064,97185.0,97175.0,0.08009428]
[1736921123578,1.10896064,97185.0,97175.0,0.08009428]
[1736921123984,1.10896064,97185.0,97173.0,0.00196]
[1736921123985,0.21737025,97174.0,97173.0,0.00196]
[1736921124184,0.21737025,97174.0,97173.0,0.00205168]
[1736921124185,0.61041317,97174.0,97173.0,0.00205168]
[1736921125045,0.94021317,97174.0,97173.0,0.00205168]
[1736921125249,0.98611317,97174.0,97173.0,0.00205168]
[1736921125449,1.42578364,97174.0,97173.0,0.00205168]
[1736921126022,1.42878364,97174.0,97173.0,0.00205168]
[1736921126409,1.44991385,97174.0,97173.0,0.00205168]
[1736921126609,1.45591385,97174.0,97173.0,0.00205168]
[1736921126759,1.45191385,97174.0,97173.0,0.00205168]
[1736921127161,1.46091385,97174.0,97173.0,0.00205168]
[1736921127364,1.46805141,97174.0,97173.0,0.00205168]
[1736921127919,1.47705141,97174.0,97173.0,0.00205168]
[1736921128094,1.47205141,97174.0,97173.0,0.00205168]
[1736921128519,1.46805141,97174.0,97173.0,0.00205168]
[1736921128922,1.46305141,97174.0,97173.0,0.00205168]
[1736921129288,1.47860147,97174.0,97173.0,0.00205168]
[1736921129690,1.47360147,97174.0,97173.0,0.00205168]
[1736921129988,1.48260147,97174.0,97173.0,0.00205168]
[1736921130140,1.48760147,97174.0,97173.0,0.00205168]
[1736921131071,1.47860147,97174.0,97173.0,0.00205168]
[1736921131513,1.48260147,97174.0,97173.0,0.00205168]
[1736921131917,1.48760147,97174.0,97173.0,0.00205168]
[1736921132239,1.48260147,97174.0,97173.0,0.00384487]
[1736921132573,1.48760147,97174.0,97173.0,0.00384487]
[1736921132978,1.45746391,97174.0,97173.0,0.00384487]
[1736921133194,1.46646391,97174.0,97173.0,0.00384487]
[1736921133412,1.47146391,97174.0,97173.0,0.00384487]
[1736921133600,1.69368187,97174.0,97173.0,0.00384487]
[1736921133984,1.70268187,97174.0,97173.0,0.00384487]
[1736921134231,1.69368187,97174.0,97173.0,0.00384487]
[1736921134517,1.68868187,97174.0,97173.0,0.00384487]
[1736921134711,1.69768187,97174.0,97173.0,0.00384487]
[1736921135048,1.47146391,97174.0,97173.0,0.00384487]
[1736921135424,1.46646391,97174.0,97173.0,0.00384487]
[1736921135628,1.47146391,97174.0,97173.0,0.00384487]
[1736921136044,1.46246391,97174.0,97173.0,0.00384487]
[1736921136213,1.46646391,97174.0,97173.0,0.00384487]
[1736921136802,1.46246391,97174.0,97173.0,0.00384487]
[1736921137010,1.70260387,97174.0,97173.0,0.00384487]
[1736921137185,1.69360387,97174.0,97173.0,0.00384487]
[1736921137610,1.70260387,97174.0,97173.0,0.00384487]
[1736921137789,1.68860387,97174.0,97173.0,0.00384487]
[1736921138164,1.69360387,97174.0,97173.0,0.00384487]